Cogmind - Beta 11 @@@ ROGUE MODE // 2022.04.18 @ 22:46:48 Player: RNGesus Result: Destroyed by 8R-AWN with 8R-AWN's Boregun Performance ------------- Evolutions (1) 500 Regions Visited (5) 1000 Robots Destroyed (70) 350 Value Destroyed (1461) 1461 Prototype IDs (27) 540 Alien Tech Used (0) 0 Bonus (322) 322 TOTAL SCORE: 4173 Bonus ------- High Alert Combat Kills 22 Aligned with FarCom 300 Cogmind --------- Core Integrity 0/400 Matter 120/400 Energy 100/100 System Corruption 0% Temperature Cool (0) Movement Treading (240) Ox1 Location -9/Exiles Parts ------- > --- POWER (1) -------- (None) > --- PROPULSION (3) --- Light Treads Light Treads Improved Treads > --- UTILITY (3) ------ Huge Storage Unit Medium Matter Pod > --- WEAPON (2) ------- Improved Assault Rifle > --- INVENTORY (25) --- Machine Analyzer Faulty Experimental Sensor Array System Shield Splice Drone Bay (6/6) Rocket Launcher Mini Grenade Launcher Peak State ------------ > --- POWER ------------ Light Nuclear Core > --- PROPULSION ------- Light Treads Improved Treads Improved Treads > --- UTILITY ---------- Huge Storage Unit Experimental Sensor Array Improved Targeting Computer > --- WEAPON ----------- Assault Rifle Assault Rifle > --- INVENTORY -------- Ion Engine Light Deuterium Engine Fission Core Light Treads Light Treads Improved Treads Flexi-carbon Leg Combat Airjet Combat Airjet Machine Analyzer Seismic Detector Improved Light Armor Plating System Shield System Shield Splice Drone Bay Medium Laser Light Assault Rifle Light Assault Rifle Grenade Launcher Rocket Launcher Blade Trap Blade Trap Blade Trap [Rating: 27] Favorites ----------- Power Improved Ion Engine Engine Improved Ion Engine Power Core Light Nuclear Core Propulsion Improved Treads Treads Improved Treads Wheel Wheel Flight Unit Improved Flight Unit Utility Huge Storage Unit Device Improved Heat Sink Storage Huge Storage Unit Processor Improved Targeting Computer Protection Light Armor Plating Weapon Assault Rifle Ballistic Gun Assault Rifle Launcher Grenade Launcher Build | -11 -10 -10 -9 -9 -9 ------- Run | Scr Mat Min Mat Min Exi Slots Evolved 2 | . . . 2 . . Power . | . . . . . . Propulsion 1 | . . . 1 . . Utility 1 | . . . 1 . . Weapon . | . . . . . . Parts Attached 62 | 6 8 9 21 4 14 Power 3 | 1 . 1 1 . . Engine 2 | 1 . . 1 . . Core 1 | . . 1 . . . Reactor . | . . . . . . Propulsion 23 | 2 2 3 9 . 7 Treads 21 | 2 2 2 8 . 7 Leg . | . . . . . . Wheel 1 | . . 1 . . . Hover . | . . . . . . Flight 1 | . . . 1 . . Utility 11 | 1 1 1 6 . 2 Device 3 | . . 1 2 . . Storage 3 | 1 1 . . . 1 Processor 1 | . . . 1 . . Hackware . | . . . . . . Protection 4 | . . . 3 . 1 Artifact . | . . . . . . Weapon 25 | 2 5 4 5 4 5 Energy Gun . | . . . . . . Energy Cannon . | . . . . . . Ballistic Gun 18 | 2 3 3 4 2 4 Ballistic Cannon . | . . . . . . Launcher 7 | . 2 1 1 2 1 Special Weapon . | . . . . . . Impact Weapon . | . . . . . . Slashing Weapon . | . . . . . . Piercing Weapon . | . . . . . . Special Melee Weapon . | . . . . . . Unidentified Prototypes 4 | . . 1 3 . . Parts Lost 18 | . . 2 2 1 13 Power 1 | . . . . . 1 Propulsion 7 | . . 1 . . 6 Utility 4 | . . . 1 1 2 Weapon 6 | . . 1 1 . 4 Highest Loss Streak 9 | . . 1 1 1 9 To Critical Strikes 5 | . . . . . 5 Average Slot Usage (%) 88 | . 85 85 97 89 87 Engine 10 | . 14 13 6 11 10 Treads 31 | . 28 28 32 33 32 Device 1 | . . . 4 . . Storage 12 | . 14 14 11 11 11 Processor 1 | . . . 9 . . Protection 6 | . . . 5 12 10 Ballistic Gun 23 | . 27 24 21 21 21 Naked Turns . | . . . . . . Heaviest Build 103 | 14 90 90 103 103 96 Greatest Support 66 | 40 46 46 66 63 63 Greatest Overweight (x) 3 | 1 1 3 2 1 1 Average Overweight (x) 1 | . . 1 1 1 1 Largest Inventory Capacity 25 | 8 25 25 25 25 25 Average Capacity 24 | 7 23 25 25 25 25 Most Carried 25 | 2 24 25 25 25 25 Average Carried 22 | . 16 24 24 25 22 Final Capacity 25 | 8 25 25 25 25 25 Final Carried 25 | 2 24 25 25 25 6 Class Distribution -------------------- 54% | Scavenger-Mutant 45% | Mutant Dominant Class ---------------- Mutant | -10/Materials Mutant | -10/Mines Scavenger-Mutant | -9/Materials Scavenger-Mutant | -9/Mines Scavenger-Mutant | -9/Exiles Resources | -11 -10 -10 -9 -9 -9 ----------- Run | Scr Mat Min Mat Min Exi Matter Collected 1943 | 129 421 486 715 118 74 Remotely . | . . . . . . Salvage Created 2267 | . 536 320 1328 75 8 Parts 145 | . 42 15 84 4 . Haulers Intercepted 8 | . 2 . 6 . . Recyclers Shooed 1 | . . . 1 . . Parts Field Recycled . | . . . . . . Retrieved Matter . | . . . . . . Parts Self-Destructed . | . . . . . . Prevented . | . . . . . . Kills | -11 -10 -10 -9 -9 -9 ------- Run | Scr Mat Min Mat Min Exi Combat Hostiles Destroyed 65 | . 12 17 25 6 5 Guns 46 | . 7 14 23 1 1 AOE 19 | . 5 3 2 5 4 Classes Destroyed 11 | . 8 1 1 1 . Worker 8 | . 3 1 4 . . Tunneler 1 | . 1 . . . . Hauler 8 | . 2 . 6 . . Recycler 1 | . 1 . . . . Mechanic 1 | . 1 . . . . Operator 1 | . 1 . . . . Swarmer 20 | . 6 5 6 3 . Grunt 21 | . 6 2 11 2 . Brawler 1 | . . . . 1 . Sentry 8 | . . . 8 . . Assembled 15 | . . 10 . . 5 Best Kill Streak 7 | . 5 3 7 3 3 Combat Bots Only 7 | . 4 3 7 3 3 Max Kills in Single Turn 3 | . 2 1 2 2 3 Gunslinging 1 | . 1 . . . . Exploded 3 | . 2 1 1 2 3 Melee . | . . . . . . Uniques/NPCs Destroyed . | . . . . . . Combat | -11 -10 -10 -9 -9 -9 -------- Run | Scr Mat Min Mat Min Exi Damage Taken 3409 | . 208 511 890 214 1586 Core 545 | . 27 102 164 12 240 Absorbed by Shields . | . . . . . . Regen/Repaired (Parts) 11 | . . . 11 . . Core Remaining (%) 74 | 100 . 48 . . . Volleys Fired 251 | . 48 47 99 12 45 Largest 2 | . 2 2 2 2 2 Hottest 56 | . 40 50 46 56 46 Shots Fired 456 | . 89 93 194 21 59 Gun 432 | . 82 90 190 15 55 Cannon . | . . . . . . Launcher 24 | . 7 3 4 6 4 Special . | . . . . . . Kinetic 432 | . 82 90 190 15 55 Thermal . | . . . . . . Explosive 24 | . 7 3 4 6 4 Electromagnetic . | . . . . . . Robot Hit Streak 19 | . 8 5 17 9 19 Robot Miss Streak 5 | . 3 5 4 1 2 Penetration Max . | . . . . . . Secondary Targets 2 | . 2 . . . . Max Gunslinging Chain 1 | . 1 . . . . Shots Hit Robots 298 | . 53 48 138 14 45 Core Hits 144 | . 33 27 61 7 16 Critical Kills 1 | . . 1 . . . Critical Parts Destroyed . | . . . . . . Critical Strikes 1 | . . 1 . . . Destroy 1 | . . 1 . . . Melee Attacks . | . . . . . . Impact . | . . . . . . Slashing . | . . . . . . Piercing . | . . . . . . Sneak Attacks . | . . . . . . Combat Hostiles . | . . . . . . Follow-up Attacks . | . . . . . . Damage Inflicted 5467 | . 1067 685 2167 672 876 Guns 3927 | . 613 590 1872 184 668 Cannons . | . . . . . . Explosions 1540 | . 454 95 295 488 208 Melee . | . . . . . . Ramming . | . . . . . . Kinetic 3927 | . 613 590 1872 184 668 Thermal . | . . . . . . Explosive 1540 | . 454 95 295 488 208 Electromagnetic . | . . . . . . Impact . | . . . . . . Slashing . | . . . . . . Piercing . | . . . . . . Highest Corruption . | . . . . . . Average Corruption . | . . . . . . Corruption Purged . | . . . . . . Corruption Blocked . | . . . . . . Overload Shots . | . . . . . . Overflow Damage 17 | . . . 2 15 . Projectiles . | . . . . . . Explosions 17 | . . . 2 15 . Melee . | . . . . . . Knockbacks . | . . . . . . Impact . | . . . . . . Kinetic . | . . . . . . Secondary . | . . . . . . Self-Inflicted Damage 141 | . . . 7 125 9 Shots 5 | . . . 1 3 1 Rammed . | . . . . . . Targets Rammed . | . . . . . . Kicked . | . . . . . . Crushed . | . . . . . . Highest Temperature 23 | . 10 13 23 19 . Average Temperature 6 | . 7 7 6 11 . Received Heat Transfer 591 | . 48 132 381 30 . Siege Activations . | . . . . . . Robots Corrupted . | . . . . . . Combat Hostiles . | . . . . . . Parts Fried . | . . . . . . Impact Corruptions . | . . . . . . Robots Melted . | . . . . . . Combat Hostiles . | . . . . . . Parts Melted . | . . . . . . Heat Transferred . | . . . . . . Parts Sabotaged . | . . . . . . Parts Stolen . | . . . . . . Parts Stripped . | . . . . . . Power Chain Reactions . | . . . . . . Missiles Intercepted . | . . . . . . Alert | -11 -10 -10 -9 -9 -9 ------- Run | Scr Mat Min Mat Min Exi Peak Influence 458 | . 135 153 458 383 . Initial 166 | . . 18 15 166 . Average 105 | . 51 42 181 143 . Maximum Alert Level 2 | . . . 2 1 . Low Security (%) 86 | 100 100 100 64 83 . Level 1 11 | . . . 27 16 . Level 2 2 | . . . 7 . . Level 3 . | . . . . . . Level 4 . | . . . . . . Level 5 . | . . . . . . High Security . | . . . . . . Max Security . | . . . . . . Squads Dispatched 4 | . 2 . 2 . . Investigation . | . . . . . . Extermination . | . . . . . . Reinforcement 4 | . 2 . 2 . . Assault . | . . . . . . Garrison . | . . . . . . Intercept . | . . . . . . Searches Triggered . | . . . . . . Construction Impeded . | . . . . . . Haulers Reinforced . | . . . . . . Active Scanning Responses . | . . . . . . Cargo Convoy Interrupts . | . . . . . . Stealth | -11 -10 -10 -9 -9 -9 --------- Run | Scr Mat Min Mat Min Exi Distress Signals 5 | . 1 1 3 . . Communications Jammed . | . . . . . . Distress Signals . | . . . . . . Times Spotted 114 | . 28 28 42 6 10 Peak Tracking Total 18 | . 5 18 6 3 11 Tactical Retreats 6 | . . 4 1 . 1 Traps | -11 -10 -10 -9 -9 -9 ------- Run | Scr Mat Min Mat Min Exi Traps Triggered 1 | . 1 . . . . Indirectly . | . . . . . . Trap Hack Attempts . | . . . . . . Triggered . | . . . . . . Disarmed . | . . . . . . Reprogrammed . | . . . . . . Reused 3 | . . . . . 3 Traps Extracted . | . . . . . . Installed 3 | . . . . . 3 Triggered . | . . . . . . Most Traps Carried 3 | . . 3 3 3 3 Exploded 3 | . . . . . 3 Machines | -11 -10 -10 -9 -9 -9 ---------- Run | Scr Mat Min Mat Min Exi Machines Disabled 6 | . . 1 . 1 4 Max in Single Turn 1 | . . 1 . 1 1 Machines Sabotaged . | . . . . . . Garrisons Compromised . | . . . . . . Overloaded Fab Kills . | . . . . . . Hacking | -11 -10 -10 -9 -9 -9 --------- Run | Scr Mat Min Mat Min Exi Machines Accessed 6 | . . 1 4 . 1 Terminals 3 | . . . 3 . . Fabricators . | . . . . . . Repair Stations 1 | . . . 1 . . Recycling Units . | . . . . . . Scanalyzers . | . . . . . . Garrison Access . | . . . . . . Total Hacks 12 | . . 1 10 . 1 Successful 5 | . . 1 3 . 1 Failed 7 | . . . 7 . . Catastrophic 2 | . . . 2 . . Database Lockouts . | . . . . . . Manual 6 | . . . 5 . 1 Terminals 7 | . . . 7 . . Fabricators . | . . . . . . Repair Stations 3 | . . . 3 . . Recycling Units . | . . . . . . Scanalyzers . | . . . . . . Garrison Access . | . . . . . . Terminal Hacks 3 | . . 1 1 . 1 Open Door 1 | . . 1 . . . Hauler Manifests 1 | . . . 1 . . EX-Prototype ID Bank 1 | . . . . . 1 Fabricator Hacks . | . . . . . . Repair Station Hacks 2 | . . . 2 . . Scan Component 1 | . . . 1 . . Repair 1 | . . . 1 . . Recycling Unit Hacks . | . . . . . . Scanalyzer . | . . . . . . Garrison Access Hacks . | . . . . . . Unauthorized Hacks . | . . . . . . Terminals . | . . . . . . Fabricators . | . . . . . . Repair Stations . | . . . . . . Recycling Units . | . . . . . . Scanalyzers . | . . . . . . Garrison Access . | . . . . . . Data Cores Recovered . | . . . . . . Used . | . . . . . . Hacking Detections 4 | . . . 4 . . Full Trace Events . | . . . . . . Feedback Events . | . . . . . . Feedback Blocked . | . . . . . . Robot Schematics Acquired . | . . . . . . Robots Built . | . . . . . . Authchips . | . . . . . . Time . | . . . . . . Total Robot Build Rating . | . . . . . . Part Schematics Acquired . | . . . . . . Parts Built . | . . . . . . Authchips . | . . . . . . Time . | . . . . . . Total Part Build Rating . | . . . . . . Parts Repaired 1 | . . . 1 . . Time 108 | . . . 108 . . Parts Recycled . | . . . . . . Recycled Matter . | . . . . . . Retrieved Matter . | . . . . . . Retrieved Components . | . . . . . . Parts Scanalyzed . | . . . . . . Part Schematics Acquired . | . . . . . . Parts Damaged . | . . . . . . Bothacking | -11 -10 -10 -9 -9 -9 ------------ Run | Scr Mat Min Mat Min Exi Used RIF Installer . | . . . . . . Robots Hacked . | . . . . . . Non-combat . | . . . . . . Combat . | . . . . . . Robot Hacks Applied . | . . . . . . Relay Couplers Released . | . . . . . . Fabnet Peak Effective % . | . . . . . . Robots Rewired . | . . . . . . Allies Hacked . | . . . . . . Hacks Repelled . | . . . . . . Allies | -11 -10 -10 -9 -9 -9 -------- Run | Scr Mat Min Mat Min Exi Total Allies 4 | . . . . 4 . Largest Group 4 | . . . . 4 3 Highest-Rated Group 71 | . . . . 71 40 Highest-Rated Ally 31 | . . . . 31 16 Total Orders 2 | . . 1 . . 1 STAY 1 | . . . . . 1 RETURN 1 | . . 1 . . . Ally Attacks 4 | . . . . . 4 Total Damage 61 | . . . . . 61 Kills . | . . . . . . Allies Corrupted . | . . . . . . Allies Melted . | . . . . . . Intel | -11 -10 -10 -9 -9 -9 ------- Run | Scr Mat Min Mat Min Exi Robot Analysis Total . | . . . . . . Derelict Logs Recovered 3 | . . 2 . 1 . Drone Launches 1 | . . 1 . . . Drone Recoveries 1 | . . 1 . . . Exploration | -11 -10 -10 -9 -9 -9 ------------- Run | Scr Mat Min Mat Min Exi Turns Passed 8766 | 62 1668 1426 1805 1370 2435 Spaces Moved 3267 | 35 660 471 602 549 950 Core 4 | 4 . . . . . Treads 3263 | 31 660 471 602 549 950 Legs . | . . . . . . Wheels . | . . . . . . Hover . | . . . . . . Flight . | . . . . . . Fastest Speed 50 | 50 160 240 240 240 240 Average Speed 240 | 150 227 266 240 240 240 Slowest Speed 400 | 160 240 400 320 240 240 Overloaded Moves . | . . . . . . Propulsion Burnouts . | . . . . . . Robots Hopped . | . . . . . . Cave-ins Triggered . | . . . . . . Exploration Rate (%) 68 | 4 92 75 73 99 68 Regions Visited 5 Branch Regions 3 Pre-discovered Areas 1 | . . . . 1 . Known Exits Taken 1 | . . 1 . . . Unknown Exits Taken 4 | 1 1 . 1 1 . Scrap Searched 3 | . . 2 . 1 . Spaces Dug 11 | . . . . 11 . Terrain Destroyed 129 | . 25 19 24 39 22 Melee . | . . . . . . Projectile . | . . . . . . AOE 129 | . 25 19 24 39 22 Terrain Rammed . | . . . . . . Walls Destroyed . | . . . . . . Machines Disabled . | . . . . . . Actions | -11 -10 -10 -9 -9 -9 --------- Run | Scr Mat Min Mat Min Exi Total 3758 | 42 737 557 789 579 1054 Wait 48 | . . 4 15 15 14 Move 3262 | 34 659 470 601 548 950 Hop . | . . . . . . Pick Up 68 | 2 20 12 24 . 10 Fast Attach 17 | 6 2 4 5 . . Attach 19 | . . 2 6 . 11 Detach 3 | . 1 2 . . . Swap 26 | . 6 3 10 4 3 Drop 61 | . 1 13 29 . 18 Fire 251 | . 48 47 99 12 45 Melee . | . . . . . . Ram . | . . . . . . Kick . | . . . . . . Crush . | . . . . . . Escape Stasis . | . . . . . . Rewire . | . . . . . . Trap 3 | . . . . . 3 Miscellaneous . | . . . . . . Route ------- -11/Scrapyard -10/Materials (discovered 4 exits: *Mat x3 / *Min) -10/Mines -9/Materials (discovered 3 exits: [*Mat x2] / [*Min]) -9/Mines (discovered 4 exits: [*Mat x2] / *Exi / [*Zio]) -9/Exiles (discovered 1 exit: [*Min]) History --------- Turn | Location | Event 43 | -11/Scrapyard | Discovered new exit (range 13) 63 | -11/Scrapyard | Entered Materials 318 | -10/Materials | Build established: Mutant 348 | -10/Materials | Discovered new exit (range 16) 672 | -10/Materials | Discovered new exit (range 11) 1031 | -10/Materials | Discovered new exit (range 16) 1356 | -10/Materials | Discovered new exit (range 15) 1731 | -10/Materials | Entered Mines 1789 | -10/Mines | Found a hidden stash of uninstalled traps 1939 | -10/Mines | Identified exit to Materials 1976 | -10/Mines | Found the Drone Emporium 1989 | -10/Mines | Found Prototype Device 1997 | -10/Mines | Identified Splice Drone Bay 2167 | -10/Mines | Assembled infested the area 2172 | -10/Mines | Assisted by a Guerilla fighting off Assembled 2286 | -10/Mines | Learned Materials security intel 2841 | -10/Mines | Found a damaged Exp. Sensor Array with a note attached 2848 | -10/Mines | Found Prototype Device 3099 | -10/Mines | Core integrity fell below 50% 3157 | -10/Mines | Entered Materials 3157 | -9/Materials | Evolved 2 slots: Propulsion x1, Utility x1 3438 | -9/Materials | Identified Exp. Sensor Array 3548 | -9/Materials | Repaired Faulty Exp. Sensor Array? 3688 | -9/Materials | Discovered new exit (range 5) 4115 | -9/Materials | Discovered new exit (range 6) 4238 | -9/Materials | Build established: Scavenger-Mutant 4385 | -9/Materials | Discovered new exit (range 9) 4480 | -9/Materials | Destroyed 7 combat bots 4962 | -9/Materials | Entered Mines 4963 | -9/Mines | A Derelict revealed a hidden shortcut to a safe place 4976 | -9/Mines | Met a Derelict bent on vengeance 4996 | -9/Mines | Discovered new exit (range 5) 5030 | -9/Mines | Learned location of Zion (-7) 5384 | -9/Mines | Discovered new exit (range 6) 5725 | -9/Mines | Assisted by bots powering up and referring to "LRC-V3" 6048 | -9/Mines | Received a Mining Laser from a helpful Derelict 6322 | -9/Mines | Deemed a non-threat by the Exiles lab entrance 6322 | -9/Mines | Discovered new exit (range 5) 6332 | -9/Mines | Entered Exiles 6332 | -9/Exiles | Accompanied by 3 allies 6519 | -9/Exiles | Met 8R-AWN 6553 | -9/Exiles | Met EX-HEX 6644 | -9/Exiles | Met EX-DEC 7831 | -9/Exiles | Met EX-BIN 7860 | -9/Exiles | Aligned with FarCom system 7862 | -9/Exiles | Given EX-Vault access code 7922 | -9/Exiles | Opened EX-Vault 7985 | -9/Exiles | Warned to stay clear of 0b10 Research branches 8308 | -9/Exiles | Discovered new exit (range 15) 8586 | -9/Exiles | Attacked by the Exiles 8622 | -9/Exiles | Core integrity fell below 50% 8679 | -9/Exiles | Lost 4 parts (1p1n1u1w) 8721 | -9/Exiles | Core integrity fell below 20% 8767 | -9/Exiles | Destroyed by 8R-AWN with 8R-AWN's Boregun Last Messages --------------- 08737_ Critical hit (Destroy). 08737_ Lgt. Treads destroyed. 08737_ Penetrated by HV Slug. 08742_ HV Slug penetrates Wall. 08746_ Penetrated by HV Slug. 08746_ HV Slug penetrates Wall. 08746_ HV Slug penetrates Earth. 08750_ Penetrated by HV Slug. 08750_ Critical hit (Destroy). 08750_ Lgt. Treads destroyed. 08753_ The unstable cave ceiling collapses. 08754_ Penetrated by HV Slug. 08754_ Critical hit (Destroy). 08754_ Imp. Light Armor Plating destroyed. 08759_ HV Slug penetrates Wall. 08759_ HV Slug penetrates Earth. 08759_ Penetrated by HV Slug. 08759_ Critical hit (Destroy). 08759_ Imp. Treads destroyed. 08763_ Penetrated by HV Slug. Map ----- +----------------------------------------------------+ | ?????????????????????????????????????????????????? | | ?????????????????????????????????????????????????? | | ?????????????????????????????????????????????????? | | ?????????????????????????????????????????????????? | | ?????????????????????????????????????????????????? | | ?????????????????????????????????????????????????? | | ?????????????????????????????????????????????????? | | ?????????????????????????????????????????????????? | | ?????????????????????????????????????????????????? | | ?????????????????????????????????????????????????? | | ?????????????????????????????????????????????????? | | ?????????????????????????????????????????????????? | | ?????????????? ??????????????#######?????????????? | | ?????????????? ######???????#!!! "#?????????????? | | ????????????? #""#??????# "#?????????????? | | ????????????? ??????# "#?????????????? | | ?????????????" #????## ""#?????????????? | | ?????????????" #####" ""#????????????? | | ??????????????# ##" ""?????????????" | | ???????????????# #"" #??????????????" | | ??????????????????# ## #??????????"" | | ?????????????????????# #??????????"" | | ?????????????????????### #?????????? | | ???????????????########" # ##??????????" | | ???????????????# !!" g #????????# | | ???????????????#! = @ ## % #???### | | ???????????????#! =*= ### #####X# | | ???????????????#! == ##??# | | ???????????????# ! "" "##;???#"# | | ???????????????##;###;###? ???#### | | ???????????????????# #???? ??????## % | | ??????????????????# #?????#????????# | | ?????????????????# #?????????????????#" | | ????????????????# #???????????????????## | | ???????????????? #?????????????????????##" | | ??????????????? ????????????????????????#"" | | ?????????????? ????????????????????????##" | | ???????????????????????????????????????#"" | | ??????????????????????????????????????##"" = | | ??????????????????????????????????????#""" %% | | ??????????????????????????????????????#""" | | ??????????????????????????????????????#"" | | ??????????????????????????????????????#""" =% | | ??????????????????????????????????????#"" %* | | ??????????????????????????????????????##"" ! | | ???????????????????????????????????????#"""" | | ???????????????????????????????????????## | | ????????????????????????????????????????#" | | ????????????????????????????????????????#"""" | | ????????????????????????????????????????#"" | +----------------------------------------------------+ Best States ------------- Heat Dissipation 42 Energy Generation 14 Energy Capacity 265 Matter Stores 300 Matter Capacity 400 Sight Range 16 Terrain Scan Density 10 Armor Coverage 375 Evasion (%) 40 Targeting Accuracy 6 Recoil Reduction 3 Item Schematics ----------------- None Robot Schematics ------------------ None Fabricated ------------ Nothing Alien Tech Used ----------------- None Achievements -------------- None Challenges ------------ None Game ------ Seed BoreCompositeReconstructor Manual? 0 Play Time 00:37:44 Cumulative 341.3 hours Start 2022.04.18 @ 21:18:44 End 2022.04.18 @ 22:46:48 Sessions 3 Manual Loads 0 Difficulty Rogue Special Mode None Game No. 503 Rogue 503 Adventurer 0 Explorer 0 Win Type - Total 6 Types 4/0/1/1/0/0/0/0/0 Lore% 81 Gallery% 84 Achievement% 66 Wizard Run 0 Options --------- ASCII 0 Keyboard 1 Movement Numpad Keybinds 0 Fullscreen 2 Font 24/Smallcaps Map View 76x50 Tactical HUD 1 Map Filters NONE Filters NONE Steam 1 RUN: 54a0abee-5cae-4cbc-831a-e3f4d162bfce